[Event "Titled Tuesday Blitz November 29 Early 2022"]
[White "Fernandez Garcia, Gumersindo"]
[Black "Hoffmann, Asa"]
[WhiteFideId "24516740"]
[BlackFideId "2001470"]
[WhiteElo "2140"]
[BlackElo "2117"]
[Result "0-1"]
[Round "09"]
[TimeControl "180+1"]
[Date "2022.11.30"]
[WhiteClock "0:00:14"]
[BlackClock "0:00:11"]

1. e4 {[%clk 0:02:55]}  d6 {[%clk 0:02:53]} 2. d4 {[%clk 0:02:42]}  Nf6 {[%clk 0:02:53]} 3. Nc3 {[%clk 0:02:42]}  c6 {[%clk 0:02:52]} 4. f4 {[%clk 0:02:39]}  Qa5 {[%clk 0:02:51]} 5. Bd3 {[%clk 0:02:36]}  e5 {[%clk 0:02:46]} 6. dxe5 {[%clk 0:02:36]}  dxe5 {[%clk 0:02:46]} 7. Nf3 {[%clk 0:02:37]}  Bg4 {[%clk 0:02:37]} 8. O-O {[%clk 0:02:35]}  Nbd7 {[%clk 0:02:36]} 9. h3 {[%clk 0:02:32]}  Bxf3 {[%clk 0:02:35]} 10. Qxf3 {[%clk 0:02:33]}  Bd6 {[%clk 0:02:33]} 11. Bd2 {[%clk 0:02:30]}  exf4 {[%clk 0:02:30]} 12. Kh1 {[%clk 0:02:23]}  Qg5 {[%clk 0:02:16]} 13. Bxf4 {[%clk 0:02:00]}  Bxf4 {[%clk 0:02:14]} 14. Qxf4 {[%clk 0:02:01]}  Qxf4 {[%clk 0:02:14]} 15. Rxf4 {[%clk 0:02:02]}  Ne5 {[%clk 0:02:10]} 16. Rf5 {[%clk 0:01:59]}  Nfd7 {[%clk 0:02:09]} 17. Be2 {[%clk 0:01:56]}  f6 {[%clk 0:02:08]} 18. Rd1 {[%clk 0:01:53]}  O-O-O {[%clk 0:02:07]} 19. Rff1 {[%clk 0:01:51]}  a5 {[%clk 0:02:05]} 20. a3 {[%clk 0:01:50]}  Nc5 {[%clk 0:02:04]} 21. Kg1 {[%clk 0:01:48]}  b5 {[%clk 0:02:02]} 22. Bf3 {[%clk 0:01:45]}  Kc7 {[%clk 0:02:00]} 23. Kf2 {[%clk 0:01:45]}  Nc4 {[%clk 0:01:59]} 24. b3 {[%clk 0:01:35]}  Nxa3 {[%clk 0:01:56]} 25. Rxd8 {[%clk 0:01:25]}  Rxd8 {[%clk 0:01:55]} 26. Bd1 {[%clk 0:01:26]}  b4 {[%clk 0:01:52]} 27. Ne2 {[%clk 0:01:14]}  Nxe4+ {[%clk 0:01:47]} 28. Ke3 {[%clk 0:01:15]}  Nc5 {[%clk 0:01:36]} 29. Nd4 {[%clk 0:01:10]}  Re8+ {[%clk 0:01:24]} 30. Kd2 {[%clk 0:01:10]}  Nb1+ {[%clk 0:01:21]} 31. Kc1 {[%clk 0:01:08]}  Nc3 {[%clk 0:01:19]} 32. Bf3 {[%clk 0:01:09]}  Nd5 {[%clk 0:01:09]} 33. Rd1 {[%clk 0:01:06]}  Ne7 {[%clk 0:01:03]} 34. Re1 {[%clk 0:01:05]}  Kd6 {[%clk 0:00:59]} 35. Nxc6 {[%clk 0:01:03]}  Ne6 {[%clk 0:00:51]} 36. Nxa5 {[%clk 0:01:01]}  Nd4 {[%clk 0:00:38]} 37. Nc4+ {[%clk 0:00:54]}  Kd7 {[%clk 0:00:32]} 38. Nb6+ {[%clk 0:00:51]}  Kd6 {[%clk 0:00:29]} 39. Bg4 {[%clk 0:00:42]}  f5 {[%clk 0:00:29]} 40. Bd1 {[%clk 0:00:42]}  Ndc6 {[%clk 0:00:22]} 41. Kb2 {[%clk 0:00:42]}  Rd8 {[%clk 0:00:21]} 42. Bf3 {[%clk 0:00:41]}  Kc5 {[%clk 0:00:19]} 43. Nc4 {[%clk 0:00:37]}  Nd5 {[%clk 0:00:19]} 44. Re6 {[%clk 0:00:34]}  Nd4 {[%clk 0:00:18]} 45. Ra6 {[%clk 0:00:31]}  Nxf3 {[%clk 0:00:17]} 46. gxf3 {[%clk 0:00:30]}  Kd4 {[%clk 0:00:16]} 47. Ra7 {[%clk 0:00:27]}  Ne3 {[%clk 0:00:16]} 48. Nxe3 {[%clk 0:00:27]}  Kxe3 {[%clk 0:00:16]} 49. Rxg7 {[%clk 0:00:27]}  Kxf3 {[%clk 0:00:16]} 50. Rxh7 {[%clk 0:00:28]}  f4 {[%clk 0:00:16]} 51. h4 {[%clk 0:00:24]}  Kg4 {[%clk 0:00:16]} 52. h5 {[%clk 0:00:23]}  Rf8 {[%clk 0:00:16]} 53. h6 {[%clk 0:00:23]}  Kg5 {[%clk 0:00:15]} 54. Rb7 {[%clk 0:00:20]}  f3 {[%clk 0:00:15]} 55. Rxb4 {[%clk 0:00:19]}  Kxh6 {[%clk 0:00:14]} 56. Rh4+ {[%clk 0:00:18]}  Kg5 {[%clk 0:00:14]} 57. Rh1 {[%clk 0:00:19]}  Kg4 {[%clk 0:00:13]} 58. b4 {[%clk 0:00:19]}  f2 {[%clk 0:00:13]} 59. Rf1 {[%clk 0:00:18]}  Kf3 {[%clk 0:00:13]} 60. c4 {[%clk 0:00:18]}  Ke2 {[%clk 0:00:13]} 61. Rxf2+ {[%clk 0:00:19]}  Kxf2 {[%clk 0:00:12]} 62. Kc3 {[%clk 0:00:19]}  Ke3 {[%clk 0:00:12]} 63. b5 {[%clk 0:00:20]}  Ke4 {[%clk 0:00:12]} 64. c5 {[%clk 0:00:19]}  Kd5 {[%clk 0:00:12]} 65. Kb4 {[%clk 0:00:15]}  Rf4+ {[%clk 0:00:12]} 66. Ka5 {[%clk 0:00:15]}  Kxc5 {[%clk 0:00:12]} 67. b6 {[%clk 0:00:14]}  Rb4 {[%clk 0:00:11]} 0-1


[Site "https://www.chess.com"]

[Event "Titled Tuesday Blitz November 29 Early 2022"]
[White "Figorito, Nick"]
[Black "Saravana, Krishnan P."]
[WhiteFideId "30923689"]
[BlackFideId "5018382"]
[WhiteElo "2363"]
[BlackElo "2155"]
[Result "0-1"]
[Round "09"]
[TimeControl "180+1"]
[Date "2022.11.30"]
[WhiteClock "0:00:01"]
[BlackClock "0:00:51"]

1. Nf3 {[%clk 0:03:00]}  Nf6 {[%clk 0:02:56]} 2. g3 {[%clk 0:03:01]}  b5 {[%clk 0:02:55]} 3. Bg2 {[%clk 0:03:01]}  Bb7 {[%clk 0:02:54]} 4. O-O {[%clk 0:03:02]}  e6 {[%clk 0:02:54]} 5. b3 {[%clk 0:03:01]}  Be7 {[%clk 0:02:55]} 6. Bb2 {[%clk 0:03:02]}  O-O {[%clk 0:02:55]} 7. d3 {[%clk 0:03:03]}  d6 {[%clk 0:02:51]} 8. Nbd2 {[%clk 0:03:03]}  c5 {[%clk 0:02:51]} 9. a4 {[%clk 0:03:00]}  a6 {[%clk 0:02:49]} 10. axb5 {[%clk 0:03:00]}  axb5 {[%clk 0:02:49]} 11. Rxa8 {[%clk 0:03:01]}  Bxa8 {[%clk 0:02:49]} 12. Qa1 {[%clk 0:02:59]}  Nbd7 {[%clk 0:02:47]} 13. Qa2 {[%clk 0:02:55]}  Qb6 {[%clk 0:02:45]} 14. Ra1 {[%clk 0:02:53]}  Bc6 {[%clk 0:02:36]} 15. Qa6 {[%clk 0:02:45]}  Rb8 {[%clk 0:02:30]} 16. Qxb6 {[%clk 0:02:41]}  Nxb6 {[%clk 0:02:27]} 17. Ra7 {[%clk 0:02:36]}  Nc8 {[%clk 0:02:25]} 18. Ra2 {[%clk 0:02:33]}  Nd5 {[%clk 0:02:24]} 19. Ne1 {[%clk 0:02:25]}  Nb4 {[%clk 0:02:23]} 20. Ra1 {[%clk 0:02:25]}  Bxg2 {[%clk 0:02:14]} 21. Kxg2 {[%clk 0:02:25]}  Nc6 {[%clk 0:02:13]} 22. e3 {[%clk 0:02:11]}  d5 {[%clk 0:02:10]} 23. Ra6 {[%clk 0:02:09]}  Nb4 {[%clk 0:02:09]} 24. Ra1 {[%clk 0:02:05]}  Kf8 {[%clk 0:02:07]} 25. Kf3 {[%clk 0:02:03]}  f6 {[%clk 0:02:07]} 26. Ke2 {[%clk 0:02:02]}  e5 {[%clk 0:02:07]} 27. Kd1 {[%clk 0:01:54]}  d4 {[%clk 0:02:04]} 28. Ne4 {[%clk 0:01:41]}  Nd5 {[%clk 0:02:01]} 29. Ke2 {[%clk 0:01:31]}  f5 {[%clk 0:01:58]} 30. Nd2 {[%clk 0:01:28]}  Bf6 {[%clk 0:01:57]} 31. e4 {[%clk 0:01:21]}  Nc3+ {[%clk 0:01:54]} 32. Bxc3 {[%clk 0:01:18]}  dxc3 {[%clk 0:01:54]} 33. Ndf3 {[%clk 0:01:11]}  g6 {[%clk 0:01:48]} 34. exf5 {[%clk 0:01:07]}  gxf5 {[%clk 0:01:47]} 35. Ng2 {[%clk 0:01:06]}  c4 {[%clk 0:01:43]} 36. bxc4 {[%clk 0:00:56]}  bxc4 {[%clk 0:01:44]} 37. dxc4 {[%clk 0:00:41]}  e4 {[%clk 0:01:44]} 38. Nfe1 {[%clk 0:00:40]}  Nd6 {[%clk 0:01:40]} 39. Ne3 {[%clk 0:00:40]}  Bd4 {[%clk 0:01:37]} 40. Ra6 {[%clk 0:00:35]}  Bxe3 {[%clk 0:01:30]} 41. Rxd6 {[%clk 0:00:31]}  Bd2 {[%clk 0:01:30]} 42. Ng2 {[%clk 0:00:26]}  Ke7 {[%clk 0:01:24]} 43. Rd5 {[%clk 0:00:24]}  Ke6 {[%clk 0:01:16]} 44. Ne3 {[%clk 0:00:23]}  Rb1 {[%clk 0:01:12]} 45. Nd1 {[%clk 0:00:17]}  h5 {[%clk 0:01:07]} 46. Rb5 {[%clk 0:00:16]}  Rc1 {[%clk 0:01:05]} 47. Rb6+ {[%clk 0:00:05]}  Kd7 {[%clk 0:00:59]} 48. Rf6 {[%clk 0:00:02]}  Rxc2 {[%clk 0:00:58]} 49. Kf1 {[%clk 0:00:03]}  Rc1 {[%clk 0:00:57]} 50. Ke2 {[%clk 0:00:03]}  c2 {[%clk 0:00:52]} 51. Ne3 {[%clk 0:00:01]}  Bxe3 {[%clk 0:00:51]} 0-1


[Site "https://www.chess.com"]

[Event "Titled Tuesday Blitz November 29 Early 2022"]
[White "Forgacs, Attila Jr."]
[Black "Clawitter, Craig"]
[WhiteFideId "773654"]
[BlackFideId "2023105"]
[WhiteElo "2168"]
[BlackElo "2265"]
[Result "1/2-1/2"]
[Round "09"]
[TimeControl "180+1"]
[Date "2022.11.30"]
[WhiteClock "0:00:12"]
[BlackClock "0:00:09"]

1. e4 {[%clk 0:03:00]}  e6 {[%clk 0:02:58]} 2. d4 {[%clk 0:03:00]}  d5 {[%clk 0:02:58]} 3. Nc3 {[%clk 0:03:01]}  Bb4 {[%clk 0:02:57]} 4. e5 {[%clk 0:03:01]}  c5 {[%clk 0:02:57]} 5. a3 {[%clk 0:03:02]}  Bxc3+ {[%clk 0:02:58]} 6. bxc3 {[%clk 0:03:02]}  Ne7 {[%clk 0:02:58]} 7. Qg4 {[%clk 0:03:01]}  Qc7 {[%clk 0:02:58]} 8. Qxg7 {[%clk 0:03:01]}  Rg8 {[%clk 0:02:59]} 9. Qxh7 {[%clk 0:03:02]}  cxd4 {[%clk 0:02:59]} 10. Ne2 {[%clk 0:03:02]}  Nbc6 {[%clk 0:02:59]} 11. f4 {[%clk 0:03:03]}  dxc3 {[%clk 0:02:59]} 12. h4 {[%clk 0:03:04]}  Bd7 {[%clk 0:02:54]} 13. h5 {[%clk 0:03:04]}  O-O-O {[%clk 0:02:47]} 14. Qd3 {[%clk 0:03:04]}  d4 {[%clk 0:02:48]} 15. h6 {[%clk 0:03:04]}  Rg6 {[%clk 0:02:38]} 16. h7 {[%clk 0:03:05]}  Rh8 {[%clk 0:02:38]} 17. Nxd4 {[%clk 0:03:05]}  Nxd4 {[%clk 0:02:34]} 18. Qxd4 {[%clk 0:03:06]}  Kb8 {[%clk 0:02:14]} 19. Rh3 {[%clk 0:02:52]}  Nf5 {[%clk 0:02:06]} 20. Qb4 {[%clk 0:02:35]}  Bc6 {[%clk 0:01:48]} 21. Qxc3 {[%clk 0:02:09]}  Bxg2 {[%clk 0:01:34]} 22. Qxc7+ {[%clk 0:02:09]}  Kxc7 {[%clk 0:01:35]} 23. Rh2 {[%clk 0:01:20]}  Be4 {[%clk 0:01:26]} 24. Bd3 {[%clk 0:01:11]}  Ng3 {[%clk 0:00:49]} 25. Bxe4 {[%clk 0:01:06]}  Nxe4 {[%clk 0:00:48]} 26. Be3 {[%clk 0:01:06]}  Rg7 {[%clk 0:00:41]} 27. O-O-O {[%clk 0:01:02]}  Rhxh7 {[%clk 0:00:36]} 28. Rxh7 {[%clk 0:00:48]}  Rxh7 {[%clk 0:00:35]} 29. Rd4 {[%clk 0:00:31]}  Ng3 {[%clk 0:00:35]} 30. Rc4+ {[%clk 0:00:31]}  Kb8 {[%clk 0:00:18]} 31. Bc5 {[%clk 0:00:31]}  b6 {[%clk 0:00:15]} 32. Bd6+ {[%clk 0:00:31]}  Kb7 {[%clk 0:00:15]} 33. Rc7+ {[%clk 0:00:31]}  Ka6 {[%clk 0:00:16]} 34. Kb2 {[%clk 0:00:30]}  Nf5 {[%clk 0:00:12]} 35. Rd7 {[%clk 0:00:27]}  Rh4 {[%clk 0:00:10]} 36. Bb8 {[%clk 0:00:26]}  Rxf4 {[%clk 0:00:10]} 37. Rxa7+ {[%clk 0:00:26]}  Kb5 {[%clk 0:00:10]} 38. Rxf7 {[%clk 0:00:27]}  Re4 {[%clk 0:00:08]} 39. Rf6 {[%clk 0:00:20]}  Nd4 {[%clk 0:00:08]} 40. c3 {[%clk 0:00:18]}  Nc6 {[%clk 0:00:08]} 41. Bd6 {[%clk 0:00:14]}  Nxe5 {[%clk 0:00:08]} 42. Bxe5 {[%clk 0:00:09]}  Rxe5 {[%clk 0:00:08]} 43. Kb3 {[%clk 0:00:09]}  Re1 {[%clk 0:00:08]} 44. Rf8 {[%clk 0:00:09]}  Kc6 {[%clk 0:00:08]} 45. Rc8+ {[%clk 0:00:09]}  Kb7 {[%clk 0:00:08]} 46. Re8 {[%clk 0:00:08]}  e5 {[%clk 0:00:09]} 47. Kc4 {[%clk 0:00:09]}  e4 {[%clk 0:00:09]} 48. Kd4 {[%clk 0:00:09]}  Ra1 {[%clk 0:00:08]} 49. Rxe4 {[%clk 0:00:08]}  Rxa3 {[%clk 0:00:09]} 50. Re7+ {[%clk 0:00:09]}  Kc6 {[%clk 0:00:09]} 51. Kc4 {[%clk 0:00:10]}  Ra4+ {[%clk 0:00:09]} 52. Kb3 {[%clk 0:00:09]}  Ra1 {[%clk 0:00:09]} 53. Re6+ {[%clk 0:00:10]}  Kb7 {[%clk 0:00:09]} 54. Rh6 {[%clk 0:00:10]}  Rb1+ {[%clk 0:00:09]} 55. Kc4 {[%clk 0:00:11]}  Rd1 {[%clk 0:00:09]} 56. Rh5 {[%clk 0:00:11]}  Kc7 {[%clk 0:00:09]} 57. Rh6 {[%clk 0:00:11]}  Kb7 {[%clk 0:00:09]} 58. Rh7+ {[%clk 0:00:11]}  Kc6 {[%clk 0:00:09]} 59. Rh6+ {[%clk 0:00:12]}  Kb7 {[%clk 0:00:09]} 1/2-1/2


[Site "https://www.chess.com"]

[Event "Titled Tuesday Blitz November 29 Early 2022"]
[White "Gareyev, Timur"]
[Black "Averjanov, Alexey"]
[WhiteFideId "14200937"]
[BlackFideId "14109867"]
[WhiteElo "2552"]
[BlackElo "2634"]
[Result "0-1"]
[Round "09"]
[TimeControl "180+1"]
[Date "2022.11.30"]
[WhiteClock "0:00:21"]
[BlackClock "0:00:29"]

1. d4 {[%clk 0:02:47]}  d5 {[%clk 0:02:54]} 2. c4 {[%clk 0:02:45]}  dxc4 {[%clk 0:02:53]} 3. e4 {[%clk 0:02:44]}  Nf6 {[%clk 0:02:53]} 4. e5 {[%clk 0:02:36]}  Nd5 {[%clk 0:02:53]} 5. Bxc4 {[%clk 0:02:36]}  Nb6 {[%clk 0:02:51]} 6. Bb3 {[%clk 0:02:36]}  Nc6 {[%clk 0:02:52]} 7. Ne2 {[%clk 0:02:36]}  Bf5 {[%clk 0:02:51]} 8. Nbc3 {[%clk 0:02:35]}  e6 {[%clk 0:02:50]} 9. Be3 {[%clk 0:02:33]}  Nb4 {[%clk 0:02:50]} 10. O-O {[%clk 0:02:33]}  N4d5 {[%clk 0:02:49]} 11. Ng3 {[%clk 0:02:32]}  Bg6 {[%clk 0:02:49]} 12. Qe2 {[%clk 0:02:27]}  Be7 {[%clk 0:02:47]} 13. f4 {[%clk 0:02:26]}  Qd7 {[%clk 0:02:44]} 14. Rf3 {[%clk 0:02:18]}  O-O {[%clk 0:02:37]} 15. Raf1 {[%clk 0:02:17]}  c6 {[%clk 0:02:32]} 16. f5 {[%clk 0:02:17]}  exf5 {[%clk 0:02:30]} 17. Nxf5 {[%clk 0:02:18]}  Bh5 {[%clk 0:02:25]} 18. Bh6 {[%clk 0:02:05]}  Qxf5 {[%clk 0:01:54]} 19. Bxg7 {[%clk 0:01:52]}  Bxf3 {[%clk 0:01:51]} 20. Rxf3 {[%clk 0:01:51]}  Nxc3 {[%clk 0:01:41]} 21. bxc3 {[%clk 0:01:48]}  Qb1+ {[%clk 0:01:38]} 22. Rf1 {[%clk 0:01:47]}  Qg6 {[%clk 0:01:37]} 23. Bxf8 {[%clk 0:01:40]}  Rxf8 {[%clk 0:01:37]} 24. Rf3 {[%clk 0:01:36]}  Kh8 {[%clk 0:01:33]} 25. Bc2 {[%clk 0:01:35]}  Qh5 {[%clk 0:01:26]} 26. Bxh7 {[%clk 0:01:33]}  Qxh7 {[%clk 0:01:20]} 27. Rh3 {[%clk 0:01:33]}  Bh4 {[%clk 0:01:19]} 28. g3 {[%clk 0:01:31]}  Qb1+ {[%clk 0:01:14]} 29. Kg2 {[%clk 0:01:25]}  Kg7 {[%clk 0:01:14]} 30. Rxh4 {[%clk 0:01:22]}  Rh8 {[%clk 0:01:04]} 31. Rg4+ {[%clk 0:01:10]}  Kf8 {[%clk 0:01:02]} 32. e6 {[%clk 0:00:53]}  Qb5 {[%clk 0:00:49]} 33. Qf3 {[%clk 0:00:46]}  Qd5 {[%clk 0:00:46]} 34. Re4 {[%clk 0:00:45]}  Rh7 {[%clk 0:00:42]} 35. h4 {[%clk 0:00:37]}  Nc4 {[%clk 0:00:38]} 36. e7+ {[%clk 0:00:36]}  Ke8 {[%clk 0:00:38]} 37. Kf2 {[%clk 0:00:30]}  Nd2 {[%clk 0:00:36]} 38. Qg4 {[%clk 0:00:22]}  Nxe4+ {[%clk 0:00:33]} 39. Ke3 {[%clk 0:00:21]}  Nf6 {[%clk 0:00:29]} 0-1


[Site "https://www.chess.com"]

[Event "Titled Tuesday Blitz November 29 Early 2022"]
[White "Georg, Heinz"]
[Black "Flis, Pawel"]
[WhiteFideId "4607295"]
[BlackFideId "1112864"]
[WhiteElo "2302"]
[BlackElo "1817"]
[Result "1-0"]
[Round "09"]
[TimeControl "180+1"]
[Date "2022.11.30"]
[WhiteClock "0:00:18"]
[BlackClock "0:00:03"]

1. e4 {[%clk 0:03:00]}  c5 {[%clk 0:02:45]} 2. Nf3 {[%clk 0:02:59]}  d6 {[%clk 0:02:46]} 3. Bb5+ {[%clk 0:02:57]}  Bd7 {[%clk 0:02:44]} 4. Bxd7+ {[%clk 0:02:57]}  Qxd7 {[%clk 0:02:45]} 5. O-O {[%clk 0:02:57]}  Nc6 {[%clk 0:02:45]} 6. c3 {[%clk 0:02:57]}  Nf6 {[%clk 0:02:45]} 7. Re1 {[%clk 0:02:57]}  g6 {[%clk 0:02:45]} 8. d4 {[%clk 0:02:57]}  cxd4 {[%clk 0:02:45]} 9. cxd4 {[%clk 0:02:57]}  Bg7 {[%clk 0:02:44]} 10. d5 {[%clk 0:02:56]}  Nb8 {[%clk 0:02:38]} 11. Nc3 {[%clk 0:02:55]}  O-O {[%clk 0:02:37]} 12. h3 {[%clk 0:02:54]}  a6 {[%clk 0:02:36]} 13. a4 {[%clk 0:02:54]}  Qd8 {[%clk 0:02:33]} 14. Be3 {[%clk 0:02:45]}  Nbd7 {[%clk 0:02:28]} 15. a5 {[%clk 0:02:41]}  Rc8 {[%clk 0:02:26]} 16. Qd2 {[%clk 0:02:34]}  Nc5 {[%clk 0:02:24]} 17. Bxc5 {[%clk 0:02:31]}  Rxc5 {[%clk 0:02:24]} 18. b4 {[%clk 0:02:17]}  Rc4 {[%clk 0:02:18]} 19. Rab1 {[%clk 0:02:13]}  Qc7 {[%clk 0:02:06]} 20. Rb3 {[%clk 0:02:12]}  Rc8 {[%clk 0:02:04]} 21. Re3 {[%clk 0:02:03]}  Nd7 {[%clk 0:01:45]} 22. Ne2 {[%clk 0:01:50]}  Rc2 {[%clk 0:01:36]} 23. Qd3 {[%clk 0:01:46]}  Bh6 {[%clk 0:01:17]} 24. Ned4 {[%clk 0:01:44]}  Rc1+ {[%clk 0:01:04]} 25. Re1 {[%clk 0:01:42]}  Rxe1+ {[%clk 0:00:59]} 26. Nxe1 {[%clk 0:01:42]}  Qc4 {[%clk 0:00:46]} 27. f3 {[%clk 0:01:25]}  Ne5 {[%clk 0:00:35]} 28. Qd1 {[%clk 0:01:16]}  Qc1 {[%clk 0:00:28]} 29. Qxc1 {[%clk 0:01:14]}  Rxc1 {[%clk 0:00:27]} 30. Kf2 {[%clk 0:01:14]}  Nc4 {[%clk 0:00:20]} 31. Nec2 {[%clk 0:01:11]}  Kg7 {[%clk 0:00:09]} 32. Rc3 {[%clk 0:01:10]}  Ne5 {[%clk 0:00:06]} 33. Rc7 {[%clk 0:01:07]}  Nd3+ {[%clk 0:00:05]} 34. Ke2 {[%clk 0:01:01]}  Nf4+ {[%clk 0:00:05]} 35. Kf2 {[%clk 0:00:47]}  Nd3+ {[%clk 0:00:05]} 36. Kg3 {[%clk 0:00:29]}  Nxb4 {[%clk 0:00:05]} 37. Rxb7 {[%clk 0:00:26]}  Nxc2 {[%clk 0:00:05]} 38. Nc6 {[%clk 0:00:24]}  Ne3 {[%clk 0:00:04]} 39. Rxe7 {[%clk 0:00:22]}  Rg1 {[%clk 0:00:03]} 40. f4 {[%clk 0:00:18]}  Rxg2+ {[%clk 0:00:03]} 41. Kf3 {[%clk 0:00:18]} 1-0


[Site "https://www.chess.com"]

[Event "Titled Tuesday Blitz November 29 Early 2022"]
[White "Ginzburg, Yakov"]
[Black "Riehle, Marco"]
[WhiteFideId "4157176"]
[BlackFideId "12904392"]
[WhiteElo "2305"]
[BlackElo "2462"]
[Result "0-1"]
[Round "09"]
[TimeControl "180+1"]
[Date "2022.11.30"]
[WhiteClock "0:00:07"]
[BlackClock "0:00:29"]

1. e4 {[%clk 0:03:00]}  e5 {[%clk 0:02:59]} 2. Nf3 {[%clk 0:02:59]}  Nf6 {[%clk 0:02:59]} 3. Nxe5 {[%clk 0:02:59]}  Nxe4 {[%clk 0:03:00]} 4. Qe2 {[%clk 0:02:56]}  Qe7 {[%clk 0:03:00]} 5. Qxe4 {[%clk 0:02:55]}  d6 {[%clk 0:03:00]} 6. d4 {[%clk 0:02:54]}  dxe5 {[%clk 0:03:01]} 7. dxe5 {[%clk 0:02:47]}  Nc6 {[%clk 0:03:01]} 8. Nc3 {[%clk 0:02:45]}  Qxe5 {[%clk 0:03:01]} 9. Bf4 {[%clk 0:02:43]}  Qxe4+ {[%clk 0:03:01]} 10. Nxe4 {[%clk 0:02:42]}  Bf5 {[%clk 0:03:02]} 11. Bd3 {[%clk 0:02:26]}  O-O-O {[%clk 0:03:02]} 12. O-O-O {[%clk 0:02:17]}  Kb8 {[%clk 0:02:59]} 13. Ng5 {[%clk 0:01:57]}  Be6 {[%clk 0:02:20]} 14. Nxe6 {[%clk 0:01:42]}  fxe6 {[%clk 0:02:21]} 15. Rhe1 {[%clk 0:01:38]}  Re8 {[%clk 0:02:18]} 16. Bb5 {[%clk 0:01:34]}  Bc5 {[%clk 0:02:13]} 17. Bxc6 {[%clk 0:01:22]}  bxc6 {[%clk 0:02:12]} 18. Bg3 {[%clk 0:01:21]}  Re7 {[%clk 0:02:10]} 19. Re4 {[%clk 0:01:15]}  Kb7 {[%clk 0:02:06]} 20. Rde1 {[%clk 0:01:15]}  Rhe8 {[%clk 0:02:04]} 21. f3 {[%clk 0:01:15]}  h6 {[%clk 0:02:02]} 22. c3 {[%clk 0:01:13]}  Kc8 {[%clk 0:01:57]} 23. Kc2 {[%clk 0:01:13]}  Bd6 {[%clk 0:01:55]} 24. Be5 {[%clk 0:01:08]}  Kd7 {[%clk 0:01:54]} 25. Rd1 {[%clk 0:01:07]}  c5 {[%clk 0:01:52]} 26. Ra4 {[%clk 0:01:05]}  Kc6 {[%clk 0:01:47]} 27. Bxd6 {[%clk 0:01:04]}  cxd6 {[%clk 0:01:47]} 28. Ra6+ {[%clk 0:01:04]}  Kb7 {[%clk 0:01:48]} 29. Raxd6 {[%clk 0:01:03]}  Kc7 {[%clk 0:01:47]} 30. h4 {[%clk 0:00:54]}  g5 {[%clk 0:01:46]} 31. h5 {[%clk 0:00:53]}  g4 {[%clk 0:01:46]} 32. f4 {[%clk 0:00:51]}  Rf8 {[%clk 0:01:41]} 33. g3 {[%clk 0:00:50]}  Rf5 {[%clk 0:01:41]} 34. Ra6 {[%clk 0:00:45]}  Kb7 {[%clk 0:01:40]} 35. Rdd6 {[%clk 0:00:43]}  Rxh5 {[%clk 0:01:37]} 36. Rxe6 {[%clk 0:00:43]}  Rxe6 {[%clk 0:01:38]} 37. Rxe6 {[%clk 0:00:43]}  c4 {[%clk 0:01:32]} 38. Re2 {[%clk 0:00:31]}  Rh1 {[%clk 0:01:27]} 39. Rf2 {[%clk 0:00:28]}  Kc6 {[%clk 0:01:25]} 40. f5 {[%clk 0:00:25]}  Kd7 {[%clk 0:01:25]} 41. f6 {[%clk 0:00:15]}  Ke8 {[%clk 0:01:25]} 42. Kd2 {[%clk 0:00:12]}  Rg1 {[%clk 0:01:20]} 43. Ke3 {[%clk 0:00:11]}  Rxg3+ {[%clk 0:01:20]} 44. Kf4 {[%clk 0:00:12]}  Rg1 {[%clk 0:00:59]} 45. Kf5 {[%clk 0:00:10]}  g3 {[%clk 0:00:55]} 46. Re2+ {[%clk 0:00:10]}  Kf8 {[%clk 0:00:54]} 47. Kg6 {[%clk 0:00:11]}  Rd1 {[%clk 0:00:45]} 48. Kxh6 {[%clk 0:00:02]}  Kf7 {[%clk 0:00:35]} 49. Kg5 {[%clk 0:00:03]}  Rg1 {[%clk 0:00:31]} 50. Kf5 {[%clk 0:00:03]}  g2 {[%clk 0:00:30]} 51. Re7+ {[%clk 0:00:03]}  Kf8 {[%clk 0:00:29]} 52. Kg6 {[%clk 0:00:02]}  Rf1 {[%clk 0:00:28]} 53. Rf7+ {[%clk 0:00:02]}  Ke8 {[%clk 0:00:28]} 54. Re7+ {[%clk 0:00:03]}  Kd8 {[%clk 0:00:29]} 55. Rg7 {[%clk 0:00:02]}  g1=Q+ {[%clk 0:00:30]} 56. Kf7 {[%clk 0:00:02]}  Qf2 {[%clk 0:00:28]} 57. Rg6 {[%clk 0:00:03]}  Qxb2 {[%clk 0:00:27]} 58. Kg7 {[%clk 0:00:03]}  Qxc3 {[%clk 0:00:27]} 59. Kg8 {[%clk 0:00:02]}  Rxf6 {[%clk 0:00:26]} 60. Rg7 {[%clk 0:00:02]}  Rf8+ {[%clk 0:00:25]} 61. Kxf8 {[%clk 0:00:03]}  Qxg7+ {[%clk 0:00:26]} 62. Kxg7 {[%clk 0:00:03]}  c3 {[%clk 0:00:26]} 63. Kf6 {[%clk 0:00:04]}  c2 {[%clk 0:00:27]} 64. Ke5 {[%clk 0:00:05]}  c1=Q {[%clk 0:00:28]} 65. Kd4 {[%clk 0:00:05]}  a5 {[%clk 0:00:26]} 66. a4 {[%clk 0:00:05]}  Qb2+ {[%clk 0:00:25]} 67. Kc4 {[%clk 0:00:05]}  Qb4+ {[%clk 0:00:26]} 68. Kd3 {[%clk 0:00:06]}  Qxa4 {[%clk 0:00:27]} 69. Kc3 {[%clk 0:00:06]}  Qb4+ {[%clk 0:00:28]} 70. Kc2 {[%clk 0:00:07]}  a4 {[%clk 0:00:29]} 0-1


[Site "https://www.chess.com"]

[Event "Titled Tuesday Blitz November 29 Early 2022"]
[White "Girel, Joseph"]
[Black "Ingebretsen, Jens E"]
[WhiteFideId "36033561"]
[BlackFideId "1522965"]
[WhiteElo "2281"]
[BlackElo "2213"]
[Result "1-0"]
[Round "09"]
[TimeControl "180+1"]
[Date "2022.11.30"]
[WhiteClock "0:00:17"]
[BlackClock "0:00:16"]

1. e4 {[%clk 0:03:00]}  e6 {[%clk 0:02:48]} 2. d4 {[%clk 0:03:00]}  d5 {[%clk 0:02:48]} 3. Nd2 {[%clk 0:03:00]}  c5 {[%clk 0:02:49]} 4. exd5 {[%clk 0:03:00]}  Qxd5 {[%clk 0:02:50]} 5. Ngf3 {[%clk 0:03:00]}  cxd4 {[%clk 0:02:50]} 6. Bc4 {[%clk 0:03:00]}  Qd7 {[%clk 0:02:51]} 7. O-O {[%clk 0:02:57]}  Nc6 {[%clk 0:02:52]} 8. Nb3 {[%clk 0:02:57]}  Nf6 {[%clk 0:02:53]} 9. Nbxd4 {[%clk 0:02:56]}  Nxd4 {[%clk 0:02:53]} 10. Nxd4 {[%clk 0:02:57]}  a6 {[%clk 0:02:54]} 11. a4 {[%clk 0:02:56]}  Bc5 {[%clk 0:02:54]} 12. Be3 {[%clk 0:02:55]}  O-O {[%clk 0:02:44]} 13. c3 {[%clk 0:02:53]}  e5 {[%clk 0:02:39]} 14. Nc2 {[%clk 0:02:51]}  Qc7 {[%clk 0:02:33]} 15. Bxc5 {[%clk 0:02:44]}  Qxc5 {[%clk 0:02:34]} 16. Ne3 {[%clk 0:02:44]}  Bd7 {[%clk 0:02:18]} 17. b4 {[%clk 0:02:42]}  Qc7 {[%clk 0:02:18]} 18. Qb3 {[%clk 0:02:42]}  Rac8 {[%clk 0:02:03]} 19. Rad1 {[%clk 0:02:42]}  b5 {[%clk 0:02:00]} 20. axb5 {[%clk 0:02:24]}  axb5 {[%clk 0:01:59]} 21. Bd5 {[%clk 0:02:23]}  Qxc3 {[%clk 0:01:56]} 22. Qb1 {[%clk 0:02:24]}  Ng4 {[%clk 0:01:41]} 23. Qe4 {[%clk 0:01:15]}  Nf6 {[%clk 0:01:11]} 24. Qh4 {[%clk 0:01:12]}  Rc7 {[%clk 0:01:09]} 25. h3 {[%clk 0:01:01]}  Rfc8 {[%clk 0:00:49]} 26. Qg3 {[%clk 0:00:50]}  Be6 {[%clk 0:00:40]} 27. Bxe6 {[%clk 0:00:47]}  fxe6 {[%clk 0:00:41]} 28. Qg5 {[%clk 0:00:34]}  Qxb4 {[%clk 0:00:35]} 29. Qxe5 {[%clk 0:00:35]}  Rc6 {[%clk 0:00:29]} 30. Rb1 {[%clk 0:00:34]}  Qc5 {[%clk 0:00:23]} 31. Rxb5 {[%clk 0:00:29]}  Qxe5 {[%clk 0:00:24]} 32. Rxe5 {[%clk 0:00:30]}  Kf7 {[%clk 0:00:19]} 33. g4 {[%clk 0:00:29]}  Rc5 {[%clk 0:00:19]} 34. Rxc5 {[%clk 0:00:25]}  Rxc5 {[%clk 0:00:20]} 35. Ra1 {[%clk 0:00:25]}  Nd5 {[%clk 0:00:21]} 36. Ra7+ {[%clk 0:00:25]}  Kf6 {[%clk 0:00:20]} 37. Ng2 {[%clk 0:00:23]}  h6 {[%clk 0:00:18]} 38. Kh2 {[%clk 0:00:22]}  Rc2 {[%clk 0:00:18]} 39. Kg3 {[%clk 0:00:22]}  Rc3+ {[%clk 0:00:18]} 40. f3 {[%clk 0:00:22]}  e5 {[%clk 0:00:17]} 41. Ra6+ {[%clk 0:00:19]}  Kf7 {[%clk 0:00:17]} 42. Nh4 {[%clk 0:00:19]}  e4 {[%clk 0:00:15]} 43. Ra5 {[%clk 0:00:19]}  Rxf3+ {[%clk 0:00:15]} 44. Nxf3 {[%clk 0:00:18]}  Nf4 {[%clk 0:00:16]} 45. Kxf4 {[%clk 0:00:17]} 1-0


[Site "https://www.chess.com"]